bitfinex/quotes_ETHUSD_20240715
["timestamp","ask_amount","ask_price","bid_price","bid_amount"]
[1721082815324,0.60234164,3466.4,3466.1,2.88507]
[1721082815527,0.60234164,3466.4,3465.9,2.88524]
[1721082815707,0.60234164,3466.4,3466.1,2.88501]
[1721082816048,0.60234164,3466.4,3466.2,2.88499]
[1721082816208,0.60234164,3466.4,3466.3,5.76984]
[1721082816831,0.60234164,3466.4,3466.3,6.346824]
[1721082817435,0.60234164,3466.4,3465.2,3.0]
[1721082817632,0.60234164,3466.4,3465.4,2.88565]
[1721082817861,0.60234164,3466.4,3465.6,2.88543]
[1721082818066,0.30192799,3466.4,3465.5,2.88558]
[1721082818218,0.30192799,3466.4,3465.3,2.88575]
[1721082818419,0.8657878,3466.3,3465.6,2.8855]
[1721082818666,0.8657878,3466.3,3465.4,2.88566]
[1721082818862,0.8657878,3466.3,3463.4,1.5]
[1721082818863,8.35627,3466.2,3465.1,2.88588]
[1721082819056,2.88512,3466.1,3465.2,2.88577]
[1721082819533,2.3314,3465.8,3464.8,2.8861]
[1721082819735,2.3314,3465.8,3464.9,2.88601]
[1721082819736,0.521669,3465.7,3464.9,2.88601]
[1721082820131,3.569669,3465.7,3463.9,2.88685]
[1721082820332,3.569669,3465.7,3464.5,2.88637]
[1721082820333,2.3314,3465.4,3464.5,2.88637]
[1721082820557,5.3794,3465.4,3464.2,2.88666]
[1721082820726,0.521669,3465.7,3463.0,3.8365733]
[1721082820727,3.048,3465.2,3464.1,2.88671]
[1721082820938,2.3314,3465.0,3464.1,2.88671]
[1721082822346,2.3314,3465.0,3464.2,2.88666]
[1721082822730,2.3314,3465.0,3463.6,0.05772866]
[1721082823032,2.3314,3465.6,3464.5,2.88641]
[1721082823233,2.88568,3465.4,3464.3,2.88656]
[1721082823429,3.0,3465.5,3463.8,0.05772449]
[1721082823430,2.3314,3465.2,3463.8,0.05772449]
[1721082823761,2.3314,3465.2,3464.3,2.88653]
[1721082824333,3.0,3465.4,3463.9,2.88686]
[1721082824334,3.0,3465.4,3464.1,2.88668]
[1721082824686,2.4927,3465.5,3464.8,2.8861]
[1721082824880,2.4927,3465.5,3464.6,2.88629]
[1721082825089,0.6014369,3465.4,3464.3,2.88651]
[1721082825242,6.4871069,3465.4,3464.2,2.88661]
[1721082825447,3.6014369,3465.4,3464.3,2.88657]
[1721082825647,3.6014369,3465.4,3464.6,2.88631]
[1721082826053,3.6014369,3465.4,3464.7,2.88619]
[1721082826255,0.89796569,3465.3,3464.3,2.88657]
[1721082826746,0.89796569,3465.3,3463.7,0.55]
[1721082827053,0.89796569,3465.3,3464.3,2.88658]
[1721082827267,0.89796569,3465.3,3464.6,2.88632]
[1721082827461,0.89796569,3465.3,3464.8,2.88611]
[1721082828056,0.30037381,3465.2,3464.9,2.88607]
[1721082828692,0.30037381,3465.2,3464.6,2.88632]
[1721082828846,0.30199652,3465.1,3464.9,2.88608]
[1721082829853,0.30199652,3465.1,3465.0,2.886]
[1721082830099,0.30199652,3465.1,3464.9,2.88608]
[1721082830396,0.30199652,3465.1,3464.7,2.88619]
[1721082831447,0.30199652,3465.1,3464.4,2.88649]
[1721082831685,0.30199652,3465.1,3464.9,2.88604]
[1721082832053,0.30199652,3465.1,3465.0,5.772]
[1721082833352,0.30199652,3465.1,3465.0,6.3492]
[1721082834576,0.30199652,3465.1,3465.0,9.2352]
[1721082835757,0.30199652,3465.1,3465.0,6.3492]
[1721082836955,0.30199652,3465.1,3465.0,5.772]
[1721082839191,0.15199652,3465.1,3465.0,8.71571282]
[1721082839353,0.15199652,3465.1,3465.0,8.658]
[1721082840760,0.15199652,3465.1,3465.0,5.772]
[1721082841061,0.30037381,3465.2,3465.1,5.77182]
[1721082842761,0.30037381,3465.2,3465.1,2.88591]
[1721082844415,0.30037381,3465.2,3464.2,2.88665]
[1721082844604,0.30037381,3465.2,3464.8,2.88616]
[1721082845105,0.30037381,3465.2,3464.6,2.88632]
[1721082845106,2.2581,3465.1,3464.6,2.88632]
[1721082845521,2.2581,3465.1,3464.8,2.8861]
[1721082845822,2.2581,3465.1,3465.0,0.1951]
[1721082846519,0.30037381,3465.2,3465.0,0.1951]
[1721082846723,0.30037381,3465.2,3465.1,5.77182]
[1721082848409,0.30037381,3465.2,3465.1,2.88591]
[1721082848787,0.30037381,3465.2,3465.1,5.77182]
[1721082849338,0.30037381,3465.2,3465.1,2.88591]
[1721082849498,0.30037381,3465.2,3465.0,0.1951]
[1721082849916,0.24042905,3465.1,3465.0,0.1951]
[1721082850082,0.30037381,3465.2,3465.0,0.1951]
[1721082850691,2.444,3465.1,3465.0,0.1951]
[1721082851816,3.35009579,3465.1,3465.0,0.1951]
[1721082852132,3.35014759,3465.1,3465.0,0.1951]
[1721082852298,2.444,3465.1,3465.0,0.1951]
[1721082852502,5.08064375,3465.1,3464.1,2.78152864]
[1721082852808,0.90627034,3464.9,3463.4,2.88733]
[1721082853110,0.90627034,3464.8,3464.0,2.88681]
[1721082853319,1.20836846,3464.9,3464.0,2.88681]
[1721082853320,0.90627034,3464.7,3464.0,2.88681]
[1721082854225,0.90627034,3464.7,3463.6,2.88714]
[1721082854529,0.90627034,3464.4,3463.7,2.88708]
[1721082854686,0.90627034,3464.4,3463.8,2.88697]
[1721082854891,1.20836846,3464.5,3463.7,2.88708]
[1721082854892,0.90627034,3464.3,3463.7,2.88708]
[1721082855092,0.21146388,3464.2,3463.4,2.88731]
[1721082855294,2.444,3464.1,3463.2,2.88744]
[1721082855492,0.90634928,3463.9,3463.2,2.88744]
[1721082855936,0.90634928,3463.9,3463.3,2.88741]
[1721082856318,0.90634928,3464.0,3463.3,2.88741]
[1721082856499,0.78182789,3463.9,3463.3,2.88741]
[1721082856823,0.30207475,3463.8,3463.3,2.88741]
[1721082857729,0.30207475,3463.8,3463.1,2.88757]
[1721082857932,6.23713475,3463.8,3461.7,3.593]
[1721082858260,7.47956447,3463.7,3462.7,2.8879]
[1721082858604,10.36664447,3463.7,3462.7,2.8879]
[1721082859305,9.46029519,3463.7,3462.7,2.8879]
[1721082859606,9.46029519,3463.7,3462.8,2.88782]
[1721082859806,1.18771849,3463.6,3462.6,2.88798]
[1721082860029,1.18771849,3463.6,3462.7,2.8879]
[1721082860533,1.18771849,3463.6,3462.5,2.88808]
[1721082860534,8.21277,3463.5,3462.5,2.88808]
[1721082860696,8.21277,3463.5,3462.6,2.888]
[1721082860906,2.2775,3463.5,3462.9,2.88773]
[1721082861099,2.2775,3463.5,3462.0,0.05775865]
[1721082861100,2.2775,3463.5,3463.3,2.88741]
[1721082861411,2.2775,3463.5,3462.2,5.36933]
[1721082861616,0.30207475,3463.8,3463.3,2.8874]
[1721082862241,0.30207475,3463.8,3463.4,2.88733]
[1721082862461,3.00107475,3463.8,3462.3,3.0]
[1721082862764,3.00107475,3463.8,3463.1,2.88752]
[1721082862765,0.81654248,3463.7,3463.1,2.88752]
[1721082862958,0.30207475,3463.8,3463.4,2.88732]
[1721082863144,0.30207475,3463.8,3463.6,2.88715]
[1721082863716,0.6024173,3463.8,3463.6,2.88715]
[1721082864229,0.6024173,3463.8,3463.7,2.88708]
[1721082864452,0.6024173,3463.8,3463.1,2.88752]
[1721082864620,0.6024173,3463.8,3463.3,2.88741]
[1721082864818,0.6024173,3463.8,3463.6,2.88715]
[1721082865620,0.6024173,3463.8,3463.7,8.66124]
[1721082866022,0.6024173,3463.8,3463.7,12.21124]
[1721082866457,0.6024173,3463.8,3463.7,15.09832]
[1721082866667,0.6024173,3463.8,3463.7,17.126772]
[1721082867660,0.00011275,3463.8,3463.7,17.126772]
[1721082867956,0.90415676,3466.0,3465.9,2.88525]
[1721082868163,2.2764,3466.3,3466.1,2.88502]
[1721082868379,0.30193881,3466.4,3466.1,2.88502]
[1721082868673,0.30023335,3466.3,3466.1,2.88502]
[1721082868965,0.30023335,3466.3,3465.9,2.88525]
[1721082868966,0.30023335,3466.3,3466.2,5.77]
[1721082869171,0.30023335,3466.3,3466.2,6.635519]
[1721082869886,0.30023335,3466.3,3466.2,5.77]
[1721082870583,0.30023335,3466.3,3466.2,2.885]
[1721082872259,0.30023335,3466.3,3466.2,5.77]
[1721082873951,0.30023335,3466.3,3466.2,8.655]
[1721082875562,0.30023335,3466.3,3466.2,15.09]
[1721082875795,0.30023335,3466.3,3466.2,16.958]
[1721082875963,2.467,3468.0,3467.5,2.88389]
[1721082876689,0.29992391,3467.9,3467.5,2.88389]
[1721082877865,0.29992391,3467.9,3467.3,2.88408]
[1721082877866,0.29992391,3467.9,3467.8,5.76734]
[1721082879094,0.29992391,3467.9,3467.8,2.88367]
[1721082879658,0.29992391,3467.9,3467.8,5.76734]
[1721082880308,0.29992391,3467.9,3467.8,6.344074]
[1721082880489,0.29992391,3467.9,3467.8,9.227744]
[1721082882069,0.29992391,3467.9,3467.8,15.233544]
[1721082882274,0.29992391,3467.9,3467.8,12.227744]
[1721082882475,0.29992391,3467.9,3467.8,15.661414]
[1721082883822,0.18478819,3467.9,3467.8,15.661414]
[1721082883966,0.30168941,3469.0,3467.8,15.661414]
[1721082883967,0.30168941,3469.0,3468.0,2.88348]
[1721082884301,0.30019886,3468.7,3467.4,2.88393]
[1721082884508,0.30019886,3468.7,3468.6,2.883]
[1721082884667,0.30019886,3468.7,3468.6,5.766]
[1721082885385,0.30019886,3468.7,3468.3,2.88323]
[1721082885591,0.30019886,3468.7,3468.4,2.88316]
[1721082885799,0.30019886,3468.7,3468.6,2.883]
[1721082886171,0.30019886,3468.7,3468.5,2.88308]
[1721082886379,0.30019886,3468.7,3468.6,2.883]
[1721082888515,0.30019886,3468.7,3468.6,5.766]
[1721082888713,0.30019886,3468.7,3468.6,6.3426]
[1721082891174,0.30019886,3468.7,3468.6,5.766]
[1721082891379,0.30019886,3468.7,3468.6,2.883]
[1721082891605,0.30019886,3468.7,3468.4,2.88313]
[1721082892089,0.30019886,3468.7,3468.3,2.88325]
[1721082892424,2.55899886,3468.7,3468.2,2.88333]
[1721082893587,0.30019886,3468.7,3468.0,2.88344]
[1721082893779,0.30019886,3468.7,3468.1,0.588344]
[1721082893986,0.30019886,3468.7,3468.4,2.8831]
[1721082894436,0.30019886,3468.7,3468.1,0.588344]
[1721082894437,0.30019886,3468.7,3468.6,2.883]
[1721082894884,0.30019886,3468.7,3468.6,5.766]
[1721082895485,0.30019886,3468.7,3468.6,2.883]
[1721082895730,0.30019886,3468.7,3468.5,2.88308]
[1721082896321,0.30019886,3468.7,3468.4,2.88314]
[1721082896631,0.30019886,3468.7,3468.2,2.88328]
[1721082896924,0.30019886,3468.7,3467.9,2.88357]
[1721082897108,0.30019886,3468.7,3467.8,3.0]
[1721082897288,0.30019886,3468.7,3467.9,2.88358]
[1721082897487,0.31829589,3468.6,3467.7,2.88375]
[1721082897688,0.30169606,3468.6,3468.0,2.8835]
[1721082898395,0.30169606,3468.6,3468.1,2.88342]
[1721082899637,2.2986,3468.5,3467.3,3.0]
[1721082899795,2.2986,3468.5,3467.6,2.88383]
[1721082899986,0.57834149,3468.4,3467.6,2.88383]
[1721082900202,0.57834149,3468.4,3467.5,2.8839]
[1721082900388,2.88335,3468.2,3467.1,10.28425]
[1721082900589,8.41074,3468.1,3467.1,7.4]
[1721082900789,2.88365,3467.9,3467.1,7.4]
[1721082901083,4.013109,3467.8,3467.1,7.4]
[1721082901286,4.013109,3467.8,3466.7,19.93]
[1721082901544,2.4883,3467.7,3466.5,2.88473]
[1721082901704,2.88392,3467.5,3466.5,2.88473]
[1721082902184,2.88392,3467.5,3466.4,7.4]
[1721082902392,0.825598,3467.4,3466.4,10.28482]
[1721082902590,0.825598,3467.4,3466.6,2.88464]
[1721082903223,0.825598,3467.4,3466.4,10.28482]
[1721082903224,0.30029912,3468.3,3467.4,2.88398]
[1721082903787,0.30029912,3468.3,3467.6,2.88376]
[1721082903984,0.30029912,3468.3,3467.7,2.88372]
[1721082904212,0.30029912,3468.3,3467.7,5.76741]
[1721082904426,0.30029912,3468.3,3467.7,2.88369]
[1721082904734,0.30029912,3468.3,3467.1,2.88424]
[1721082904735,0.60887864,3468.3,3467.1,2.88424]
[1721082904915,2.88344,3468.1,3467.0,2.88432]
[1721082905383,5.26036,3468.0,3466.9,7.4]
[1721082905587,5.26036,3468.0,3467.0,2.88433]
[1721082905787,4.00189,3467.9,3466.9,7.4]
[1721082906526,2.4671,3467.5,3466.5,19.93]
[1721082906829,2.4671,3467.5,3466.7,2.88458]
[1721082907216,2.4671,3467.5,3466.8,2.8845]
[1721082907462,2.4671,3467.5,3467.0,2.88433]
[1721082907963,2.4671,3467.5,3466.9,2.88441]
[1721082908257,2.4671,3467.5,3466.6,2.88465]
[1721082908470,0.24671,3467.4,3466.6,2.88465]
[1721082908648,0.24671,3467.4,3466.7,2.88457]
[1721082909162,0.24671,3467.4,3466.4,2.88481]
[1721082909361,0.24671,3467.4,3466.2,2.88496]
[1721082909658,2.88415,3467.3,3466.2,2.88496]
[1721082909842,1.152088,3467.2,3466.3,2.88491]
[1721082910050,1.152088,3467.2,3466.1,2.88503]
[1721082910249,2.88426,3467.1,3466.0,10.28515]
[1721082910570,2.4671,3467.5,3467.0,2.88433]
[1721082910864,2.4671,3467.5,3466.8,2.88445]
[1721082911069,3.0,3467.8,3466.8,2.88445]
[1721082911070,0.30024413,3467.4,3466.8,2.88445]
[1721082911356,0.30024413,3467.4,3467.3,2.88408]
[1721082911563,0.30024413,3467.4,3467.3,5.76816]
[1721082912764,1e-08,3467.4,3467.3,5.76816]
[1721082912926,1e-08,3467.4,3466.8,0.576896]
[1721082913121,0.30173914,3468.1,3467.6,2.88382]
[1721082913560,0.30018209,3468.0,3467.6,2.88382]
[1721082913765,0.30018209,3468.0,3467.2,2.88411]
[1721082914061,0.30018209,3468.0,3467.3,2.88406]
[1721082914462,0.30018209,3468.0,3466.9,7.4]
[1721082914619,0.30018209,3468.0,3467.9,2.88358]
[1721082914823,0.30018209,3468.0,3467.9,5.76716]
[1721082915624,0.30018209,3468.0,3467.9,2.88358]
[1721082916255,0.30018209,3468.0,3467.7,2.88373]
[1721082916763,0.30018209,3468.0,3467.3,3.0]
[1721082916764,0.30018209,3468.0,3467.8,2.88366]
[1721082917530,0.30018209,3468.0,3467.6,2.88383]
[1721082918928,0.30018209,3468.0,3467.7,2.88374]
[1721082919129,0.30018209,3468.0,3467.8,2.88366]
[1721082919331,0.30018209,3468.0,3467.6,2.88378]
[1721082919550,0.30018209,3468.0,3466.9,10.4]
[1721082919764,0.30018209,3468.0,3467.6,2.88383]
[1721082919927,0.30018209,3468.0,3467.6,2.88378]
[1721082920557,0.30018209,3468.0,3467.2,2.88416]
[1721082920740,0.30018209,3468.0,3467.1,2.8842]
[1721082921068,0.30018209,3468.0,3467.9,5.76716]
[1721082921267,0.30018209,3468.0,3467.9,6.343876]
[1721082921672,0.30018209,3468.0,3467.9,12.111036]
[1721082921862,0.30018209,3468.0,3467.9,15.111036]
[1721082922033,0.30018209,3468.0,3467.9,15.661036]
[1721082922234,0.30018209,3468.0,3467.9,12.227456]
[1721082922752,0.30018209,3468.0,3467.9,9.343876]
[1721082924029,0.30018209,3468.0,3467.9,12.227456]
[1721082924260,0.30018209,3468.0,3467.9,12.777456]
[1721082924456,0.30018209,3468.0,3467.9,15.661036]
[1721082924669,0.30168601,3468.8,3468.7,5.76584]
[1721082924871,0.30168601,3468.8,3468.7,6.342424]
[1721082925068,0.60177692,3468.8,3468.7,6.342424]
[1721082926070,0.60177692,3468.8,3468.7,6.177424]
[1721082928341,0.60177692,3468.8,3468.0,2.88348]
[1721082928569,0.60177692,3468.8,3468.6,2.88294]
[1721082928770,0.60177692,3468.8,3468.7,5.76584]
[1721082929177,0.60177692,3468.8,3468.1,3.0]
[1721082929178,0.60177692,3468.8,3468.6,2.883]
[1721082929346,0.60177692,3468.8,3468.0,2.88348]
[1721082929347,0.60177692,3468.8,3468.0,2.88344]
[1721082929551,0.29180769,3468.7,3468.0,2.88344]
[1721082929935,0.29180769,3468.7,3467.3,2.88404]
[1721082930245,0.60177692,3468.8,3468.4,2.88315]
[1721082930453,0.60177692,3468.8,3467.9,2.88357]
[1721082930655,0.60177692,3468.8,3467.5,2.88389]
[1721082930874,0.60177692,3468.8,3467.1,7.4]
[1721082930875,2.3163,3468.0,3467.1,7.4]
[1721082931084,2.88364,3467.9,3466.9,2.88439]
[1721082931376,0.73089896,3467.9,3467.2,2.88414]
[1721082931674,0.37944147,3467.8,3467.0,2.88428]
[1721082931990,0.37944147,3467.8,3467.1,2.88423]
[1721082932294,0.37944147,3467.8,3467.4,2.88393]
[1721082932576,0.37944147,3467.8,3466.8,2.88442]
[1721082932577,0.37944147,3467.8,3467.1,2.88424]
[1721082932874,0.93736462,3467.8,3466.4,7.4]
[1721082933182,0.93736462,3467.8,3467.3,2.88406]
[1721082933183,0.30174487,3467.8,3467.3,2.88406]
[1721082933486,0.30174487,3467.8,3467.2,2.88415]
[1721082933881,0.07848812,3467.7,3467.2,2.88415]
[1721082934182,0.07848812,3467.7,3467.5,2.88384]
[1721082934478,0.07848812,3467.7,3466.4,7.4]
[1721082934479,0.07848812,3467.7,3467.4,2.88399]
[1721082934677,0.30174487,3467.8,3467.4,2.88399]
[1721082934876,0.07869352,3467.6,3467.4,2.88399]
[1721082935077,0.30174487,3467.8,3467.6,2.88377]
[1721082935373,0.3001297,3467.6,3467.5,2.8839]
[1721082935744,0.37857514,3467.6,3467.5,2.8839]
[1721082935946,0.3001297,3467.6,3467.5,2.8839]
[1721082936141,0.3001297,3467.6,3467.5,5.76782]
[1721082936370,0.3001297,3467.6,3467.5,11.53566]
[1721082936554,0.3001297,3467.6,3467.5,18.962826]
[1721082939373,0.3001297,3467.6,3467.5,16.598226]
[1721082940666,0.3001297,3467.6,3467.5,13.714306]
[1721082941084,0.3001297,3467.6,3467.5,16.598226]
[1721082941896,0.3001297,3467.6,3467.5,19.482146]
[1721082942271,0.3001297,3467.6,3467.5,16.598226]
[1721082943368,0.3001297,3467.6,3467.5,13.714306]
[1721082943574,0.3001297,3467.6,3467.5,16.598226]
[1721082944363,0.3001297,3467.6,3467.5,19.482146]
[1721082944992,1e-08,3467.6,3467.5,19.482146]
[1721082945204,0.30167164,3468.6,3468.5,5.76618]
[1721082945383,0.30167164,3468.6,3468.5,6.631115]
[1721082945571,0.60175453,3468.6,3468.5,6.631115]
[1721082946510,0.60175453,3468.6,3468.5,9.514205]
[1721082951591,0.60175453,3468.6,3468.5,2.88309]
[1721082951791,0.60175453,3468.6,3468.5,5.76618]
[1721082953790,0.60175453,3468.6,3468.5,2.88309]
[1721082953991,0.60175453,3468.6,3468.5,5.76618]
[1721082956192,0.60175453,3468.6,3468.5,2.88309]
[1721082956528,0.60175453,3468.6,3468.5,5.76618]
[1721082957725,0.60175453,3468.6,3468.5,2.88309]
[1721082959800,0.60175453,3468.6,3468.4,2.88313]
[1721082960193,0.60175453,3468.6,3468.5,2.88309]
[1721082960424,0.60175453,3468.6,3468.3,2.88321]
[1721082960629,2.4181,3468.5,3468.1,2.88335]
[1721082960829,2.4181,3468.5,3468.2,2.88331]
[1721082961128,2.4181,3468.5,3467.6,7.4]
[1721082961129,2.72008545,3468.5,3467.6,7.4]
[1721082961334,2.4181,3468.3,3467.5,2.88391]
[1721082961624,0.62056118,3468.2,3467.6,2.88383]
[1721082961799,0.90485367,3468.1,3467.4,2.88394]
[1721082962000,1.06499864,3468.0,3467.1,2.88422]
[1721082962213,1.06499864,3468.0,3467.3,2.88403]
[1721082962428,0.07048014,3467.9,3467.3,2.88403]
[1721082962731,0.07048014,3467.9,3467.2,2.88416]
[1721082962732,2.253,3467.7,3467.2,2.88416]
[1721082962892,2.253,3467.7,3467.2,2.88412]
[1721082963234,0.62030236,3467.6,3467.3,2.88408]
[1721082963417,0.62030236,3467.6,3466.6,7.4]
[1721082963623,0.62030236,3467.6,3466.7,2.88456]
[1721082963824,0.55,3467.6,3466.7,2.88456]
[1721082964021,0.07020839,3467.5,3466.7,2.88456]
[1721082964227,1.27118125,3467.4,3466.7,2.88456]
[1721082964607,0.07013505,3467.3,3466.8,2.88447]
[1721082964811,0.55,3467.2,3466.8,2.88447]
[1721082965296,0.55,3467.2,3466.9,2.88441]
[1721082965529,2.8029804,3467.7,3467.2,2.8841]
[1721082965828,0.44094695,3467.6,3467.2,2.8841]
[1721082966031,0.07016354,3467.6,3467.5,2.88392]
[1721082966199,0.07016354,3467.6,3467.5,5.76784]
[1721082966592,3.86790242,3468.2,3467.5,2.88392]
[1721082966793,2.96304875,3468.2,3467.8,2.88367]
[1721082967103,3.64983899,3468.2,3467.8,2.88367]
[1721082967939,3.34810933,3468.2,3467.6,2.88378]
[1721082968226,3.34810933,3468.2,3467.3,2.88403]
[1721082968227,0.55,3468.1,3467.3,2.88403]
[1721082968398,0.7802963,3468.0,3467.1,2.88423]
[1721082968595,0.55,3467.9,3467.1,2.88423]
[1721082968822,2.3611,3467.8,3467.0,2.88427]
[1721082969023,0.55,3467.7,3467.0,5.76853]
[1721082969204,1.297982,3467.7,3467.1,2.88423]
[1721082969528,1.297982,3467.7,3467.1,2.88424]
[1721082969529,0.07024445,3467.6,3467.1,2.88424]
[1721082969837,0.55,3467.5,3467.3,2.88407]
[1721082970193,0.98700933,3468.2,3467.3,5.76815]
[1721082970194,0.07017219,3467.4,3467.3,5.76815]
[1721082970400,0.07017219,3467.4,3467.3,6.344965]
[1721082970704,2.3577,3468.1,3467.8,2.88366]
[1721082971439,2.3577,3468.1,3467.1,2.8842]
[1721082971440,0.30021909,3468.2,3468.1,8.65026]
[1721082971751,0.30021909,3468.2,3468.1,12.23926]
[1721082971950,0.30021909,3468.2,3468.1,8.65026]
[1721082972100,0.30021909,3468.2,3468.1,10.103639]
[1721082976274,0.30021909,3468.2,3468.1,10.09969289]
[1721082976947,0.30021909,3468.2,3468.1,12.98311289]
[1721082977130,0.30021909,3468.2,3468.1,15.98311289]
[1721082980539,0.30021909,3468.2,3468.1,10.21627289]
[1721082981549,0.30021909,3468.2,3468.1,5.76289389]
[1721082982259,0.30021909,3468.2,3468.1,8.64631389]
[1721082983495,0.30021909,3468.2,3468.1,11.64631389]
[1721082984177,0.30021909,3468.2,3468.1,8.76289389]
[1721082985479,0.30021909,3468.2,3468.1,11.64631389]
[1721082985771,0.30021909,3468.2,3468.1,9.92752528]
[1721082986668,0.30021909,3468.2,3468.1,12.81094528]
[1721082988259,2.3577,3469.3,3469.1,2.88256]
[1721082990760,2.3577,3469.3,3468.9,2.88275]
[1721082991163,2.3577,3469.3,3469.0,2.88266]
[1721082991368,2.6356031,3469.3,3469.0,2.88266]
[1721082991684,2.6356031,3469.3,3469.1,2.88258]
[1721082992146,2.6356031,3469.3,3468.9,2.88275]
[1721082992147,2.6356031,3469.3,3469.0,2.88265]
[1721082992484,2.3577,3469.3,3469.0,2.88265]
[1721082992683,0.30164724,3469.4,3469.3,2.88242]
[1721082993378,2.3138,3469.3,3469.2,2.8825]
[1721082994399,0.30164724,3469.4,3469.3,5.76484]
[1721082994702,0.30164724,3469.4,3469.3,8.70489757]
[1721082994925,0.1196838,3469.6,3469.5,2.88225]
[1721082995095,0.1196838,3469.6,3469.1,2.88252]
[1721082995096,2.3138,3469.5,3469.1,2.88252]
[1721082995409,2.3138,3469.5,3469.2,2.8825]
[1721082995589,2.3138,3469.5,3468.5,5.88304]
[1721082995590,2.3138,3469.5,3469.1,2.88257]
[1721082995901,2.55714838,3469.5,3469.2,2.8825]
[1721082996258,2.3138,3469.5,3469.3,2.8824]
[1721082996587,0.1196838,3469.6,3469.4,2.88233]
[1721082996960,0.1196838,3469.6,3469.2,2.8825]
[1721082997603,0.1196838,3469.6,3469.0,2.88265]
[1721082997785,0.55,3469.5,3469.0,2.88265]
[1721082998065,0.55,3469.5,3469.1,2.88259]
[1721082998066,0.84986475,3469.5,3469.1,2.88259]
[1721082998473,0.05753091,3469.4,3469.1,2.88259]
[1721082998677,0.05753091,3469.4,3469.2,2.8825]
[1721082999282,0.05753091,3469.4,3469.3,2.88242]
[1721083002295,0.05753091,3469.4,3469.3,5.76484]
[1721083002637,0.05753091,3469.4,3469.3,2.88242]
[1721083002931,2.2927,3469.3,3468.5,2.88308]
[1721083003079,0.26500957,3469.2,3468.5,2.88308]
[1721083003283,0.26500957,3469.2,3468.6,2.883]
[1721083003284,0.32253157,3469.2,3468.6,2.883]
[1721083003479,0.55,3469.1,3468.7,2.88291]
[1721083003958,0.55,3469.1,3468.4,2.88317]
[1721083004221,0.55,3469.1,3468.0,2.88349]
[1721083004222,2.88268,3469.0,3468.0,2.88349]
[1721083004519,2.88268,3469.0,3467.4,7.4]
[1721083004520,2.88332,3468.3,3467.4,7.4]
[1721083004691,2.88332,3468.3,3467.1,2.88418]
[1721083004692,2.88332,3468.3,3467.3,2.88402]
[1721083004895,0.55,3468.2,3467.4,2.884]
[1721083005342,2.2927,3468.4,3467.8,2.88366]
[1721083005493,2.2927,3468.4,3467.9,2.88357]
[1721083005494,0.55,3468.3,3467.9,2.88357]
[1721083005679,0.55,3468.3,3467.6,2.88377]
[1721083005680,0.30005709,3468.1,3467.7,2.88374]
[1721083005883,0.30005709,3468.1,3467.3,2.88401]
[1721083006121,0.60704333,3468.0,3467.7,2.88369]
[1721083006320,0.55,3468.0,3467.7,2.88369]
[1721083006620,0.55,3468.0,3467.5,2.88385]
[1721083006621,0.05702297,3467.9,3467.5,2.88385]
[1721083006978,0.55,3468.0,3467.5,2.88386]
[1721083006979,0.55,3467.8,3467.5,2.88386]
[1721083007184,0.05696137,3467.8,3467.5,2.88386]
[1721083007530,0.30005709,3468.1,3466.9,2.88435]
[1721083007827,0.30005709,3468.1,3467.6,2.88382]
[1721083008185,0.30005709,3468.1,3467.7,2.88374]
[1721083008884,0.55,3468.0,3467.7,2.88374]
[1721083009221,0.55,3468.0,3467.5,2.8839]
[1721083009720,0.05686048,3467.9,3467.3,2.88405]
[1721083010025,0.55,3467.8,3467.3,2.88405]
[1721083010226,0.05686543,3467.7,3467.3,2.88405]
[1721083010519,0.85173653,3467.8,3467.3,2.88405]
[1721083010731,0.85173653,3467.8,3467.1,2.88423]
[1721083011028,2.338,3467.6,3467.1,2.584188]
[1721083011222,2.338,3467.6,3466.4,2.88482]
[1721083011223,2.88425,3467.1,3466.1,2.88501]
[1721083011434,2.88425,3467.1,3465.9,7.1001942]
[1721083011435,2.338,3467.0,3465.9,9.9854342]
[1721083011586,2.888,3467.0,3466.3,2.88491]
[1721083011786,2.888,3467.0,3466.6,2.88466]
[1721083011787,0.0566675,3466.9,3466.6,2.88466]
[1721083012128,0.55,3466.8,3466.6,2.88466]
[1721083012331,0.55,3466.8,3465.9,7.1001942]
[1721083012487,0.05655944,3466.7,3466.4,2.88482]
[1721083012888,0.55,3466.8,3466.4,2.88482]
[1721083013083,0.05653801,3466.6,3466.4,2.88482]
[1721083013331,0.55,3466.8,3466.4,2.88482]
[1721083013504,0.05646367,3466.5,3466.4,2.88482]
[1721083013701,0.86824668,3466.8,3466.4,2.88482]
[1721083013884,0.05646367,3466.5,3466.2,2.88499]
[1721083014131,0.86824668,3466.8,3466.2,2.88499]
[1721083014370,0.86824668,3466.8,3466.0,2.88515]
[1721083014573,0.37712909,3466.7,3466.0,2.88515]
[1721083014772,0.55,3466.6,3466.0,2.88515]
[1721083015577,0.05640859,3466.5,3466.2,2.88498]
[1721083015733,0.55,3466.4,3466.2,2.88498]
[1721083016078,0.05638453,3466.3,3466.2,2.88498]
[1721083016845,0.05638453,3466.3,3466.2,5.76998]
[1721083017041,0.30007427,3466.4,3466.3,5.76984]
[1721083019072,0.30007427,3466.4,3466.3,2.88492]
[1721083020579,0.85007427,3466.4,3466.2,2.88499]
[1721083020782,0.85007427,3466.4,3465.4,3.0]
[1721083021347,0.85007427,3466.4,3466.1,2.88501]
[1721083021555,0.85007427,3466.4,3466.2,2.88499]
[1721083021758,0.05628669,3466.3,3466.2,2.88499]
[1721083021996,0.85007427,3466.4,3466.2,2.88499]
[1721083022499,0.05627716,3466.3,3466.2,2.88499]
[1721083022806,0.05627716,3466.3,3466.0,2.88516]
[1721083023092,0.85007427,3466.4,3466.0,2.88516]
[1721083023299,0.85007427,3466.4,3465.8,2.88532]
[1721083023517,0.05626233,3466.3,3465.9,2.88524]
[1721083023800,0.05626233,3466.3,3465.7,2.8854]
[1721083023981,0.55,3466.2,3465.8,2.88531]